fUST/lending_fUST_20240608
["ID","MTS","AMOUNT","RATE_DAILY","PERIOD"]
[328793311,1717789836311,-157.02609003,0.00021915,2]
[328793312,1717789836321,-641.7476652,0.00021916,2]
[328793313,1717789836330,-464.1222642,0.00021916,2]
[328793315,1717789836340,-411.23565882,0.00021916,2]
[328793316,1717789836349,-672.5,0.00021916,2]
[328793317,1717789836360,-479.68061974,0.00021916,2]
[328793318,1717789836370,-275.03471365,0.00021916,2]
[328793319,1717789836380,-2324.8466212,0.00021917,7]
[328793320,1717789836390,-500.0,0.00021917,3]
[328793321,1717789836400,-500.0,0.00021917,3]
[328793322,1717789836410,-304.16018197,0.00021917,3]
[328793323,1717789836420,-500.0,0.00021917,3]
[328793324,1717789836431,-500.0,0.00021917,3]
[328793325,1717789836440,-520.42577352,0.00021917,3]
[328793326,1717789836451,-500.0,0.00021917,3]
[328793327,1717789836461,-500.0,0.00021917,3]
[328793328,1717789836471,-500.0,0.00021917,3]
[328793329,1717789836481,-500.0,0.00021917,3]
[328793330,1717789836491,-510.63935521,0.00021917,3]
[328793331,1717789836502,-500.0,0.00021917,3]
[328793332,1717789836512,-500.0,0.00021917,3]
[328793333,1717789836522,-558.71,0.00021917,3]
[328793334,1717789836531,-500.0,0.00021917,3]
[328793335,1717789836542,-461.53849347,0.00021917,3]
[328793336,1717789836556,-395.32150653,0.00021917,3]
[328793337,1717789836566,-500.0,0.00021917,3]
[328793338,1717789836575,-500.0,0.00021917,3]
[328793339,1717789836585,-569.95969663,0.00021917,3]
[328793340,1717789836595,-500.0,0.00021917,3]
[328793341,1717789836605,-500.0,0.00021917,3]
[328793342,1717789836614,-500.0,0.00021917,3]
[328793343,1717789836623,-500.0,0.00021917,3]
[328793344,1717789836633,-500.0,0.00021917,3]
[328793345,1717789836642,-500.0,0.00021917,3]
[328793346,1717789836651,-500.0,0.00021917,3]
[328793347,1717789836661,-500.0,0.00021917,3]
[328793348,1717789836671,-757.07,0.00021917,3]
[328793349,1717789836682,-500.0,0.00021917,3]
[328793350,1717789836692,-500.0,0.00021917,3]
[328793351,1717789836702,-500.0,0.00021917,3]
[328793352,1717789836828,-500.0,0.00021917,3]
[328793353,1717789836839,-510.05180134,0.00021917,3]
[328793354,1717789836849,-500.0,0.00021917,3]
[328793355,1717789836858,-502.77358706,0.00021917,3]
[328793356,1717789836868,-186.53543359,0.00021917,3]
[328793357,1717789836877,-500.0,0.00021917,3]
[328793358,1717789836887,-500.0,0.00021917,3]
[328793359,1717789836896,-500.0,0.00021917,3]
[328793360,1717789836906,-1009.99246313,0.00021917,3]
[328793361,1717789836915,-500.0,0.00021917,3]
[328793362,1717789836925,-500.0,0.00021917,3]
[328793363,1717789836936,-917.78,0.00021917,3]
[328793364,1717789836949,-500.0,0.00021917,3]
[328793365,1717789836959,-500.0,0.00021917,3]
[328793366,1717789836969,-1265.75,0.00021917,3]
[328793367,1717789836980,-500.0,0.00021917,3]
[328793368,1717789836990,-854.85267672,0.00021917,3]
[328793370,1717789840417,-355.45732328,0.00021917,3]
[328793373,1717789840428,-500.0,0.00021917,3]
[328793377,1717789840437,-186.91255128,0.00021917,3]
[328793381,1717789840450,-589.47744872,0.00021917,3]
[328793384,1717789840460,-613.92,0.00021917,2]
[328793387,1717789840471,-500.0,0.00021917,3]
[328793389,1717789840481,-500.0,0.00021917,3]
[328793392,1717789840491,-500.0,0.00021917,3]
[328793394,1717789840501,-500.0,0.00021917,3]
[328793397,1717789840513,-500.0,0.00021917,3]
[328793399,1717789840523,-500.0,0.00021917,3]
[328793402,1717789840532,-500.0,0.00021917,3]
[328793405,1717789840543,-500.0,0.00021917,3]
[328793407,1717789840552,-500.0,0.00021917,3]
[328793409,1717789840562,-500.0,0.00021917,3]
[328793412,1717789840571,-500.0,0.00021917,3]
[328793414,1717789840581,-628.39,0.00021917,3]
[328793416,1717789840590,-500.0,0.00021917,3]
[328793417,1717789840600,-523.1117152,0.00021917,3]
[328793418,1717789840608,-1920.92,0.00021917,3]
[328793419,1717789840618,-500.0,0.00021917,3]
[328793420,1717789840627,-500.0,0.00021917,3]
[328793421,1717789840636,-823.28,0.00021917,3]
[328793422,1717789840646,-506.65218318,0.00021917,3]
[328793423,1717789840656,-500.0,0.00021917,3]
[328793424,1717789840665,-500.0,0.00021917,3]
[328793425,1717789840674,-599.61,0.00021917,3]
[328793426,1717789840683,-500.0,0.00021917,3]
[328793427,1717789840692,-506.52299297,0.00021917,3]
[328793428,1717789840702,-1217.21,0.00021917,3]
[328793429,1717789840711,-911.34,0.00021917,3]
[328793430,1717789840720,-500.0,0.00021917,3]
[328793431,1717789840729,-500.0,0.00021917,3]
[328793432,1717789840738,-500.0,0.00021917,3]
[328793433,1717789840747,-1038.43,0.00021917,3]
[328793434,1717789840758,-500.0,0.00021917,3]
[328793435,1717789840767,-566.66,0.00021917,3]
[328793436,1717789840776,-516.52291486,0.00021917,3]
[328793437,1717789840785,-616.26,0.00021917,3]
[328793438,1717789840794,-500.0,0.00021917,3]
[328793439,1717789840804,-500.0,0.00021917,3]
[328793441,1717789840814,-500.0,0.00021917,3]
[328793443,1717789840823,-710.82,0.00021917,3]
[328793444,1717789840832,-902.76,0.00021917,3]
[328793446,1717789840842,-500.0,0.00021917,3]
[328793448,1717789840851,-500.0,0.00021917,3]
[328793451,1717789840861,-500.0,0.00021917,3]
[328793452,1717789840870,-500.0,0.00021917,3]
[328793454,1717789840879,-2002.57,0.00021917,3]
[328793456,1717789840889,-1015.32,0.00021917,3]
[328793458,1717789840898,-500.0,0.00021917,3]
[328793460,1717789840908,-2724.2,0.00021917,3]
[328793462,1717789840917,-923.42,0.00021917,3]
[328793464,1717789840927,-1932.93,0.00021917,4]
[328793466,1717789840936,-511.67354404,0.00021917,3]
[328793468,1717789840949,-299.98108866,0.00021917,3]
[328793470,1717789840959,-500.0,0.00021917,3]
[328793472,1717789840968,-500.0,0.00021917,3]
[328793474,1717789840979,-500.0,0.00021917,3]
[328793476,1717789840988,-500.0,0.00021917,3]
[328793478,1717789840997,-500.0,0.00021917,3]
[328793480,1717789841009,-500.0,0.00021917,3]
[328793482,1717789841021,-500.0,0.00021917,3]
[328793483,1717789841031,-1051.52,0.00021917,3]
[328793485,1717789841040,-500.0,0.00021917,3]
[328793486,1717789841049,-529.69,0.00021917,3]
[328793487,1717789841059,-500.0,0.00021917,3]
[328793488,1717789841068,-500.0,0.00021917,3]
[328793489,1717789841077,-500.0,0.00021917,3]
[328793490,1717789841087,-500.0,0.00021917,3]
[328793491,1717789841096,-500.0,0.00021917,3]
[328793492,1717789841106,-725.75,0.00021917,3]
[328793493,1717789841115,-574.08,0.00021917,3]
[328793494,1717789841124,-500.0,0.00021917,3]
[328793495,1717789841134,-500.0,0.00021917,3]
[328793496,1717789841144,-500.0,0.00021917,3]
[328793497,1717789841153,-500.0,0.00021917,3]
[328793498,1717789841163,-500.0,0.00021917,3]
[328793499,1717789841173,-319.8165524,0.00021917,3]
[328793500,1717789841182,-1455.21,0.00021917,3]
[328793501,1717789841191,-500.0,0.00021917,3]
[328793502,1717789841201,-500.0,0.00021917,3]
[328793503,1717789841211,-2503.04,0.00021917,3]
[328793504,1717789841220,-2486.89,0.00021917,3]
[328793505,1717789841229,-503.57274326,0.00021917,3]
[328793506,1717789841239,-500.0,0.00021917,3]
[328793507,1717789841249,-500.0,0.00021917,3]
[328793508,1717789841260,-500.0,0.00021917,3]
[328793509,1717789841269,-500.0,0.00021917,3]
[328793510,1717789841279,-2292.4,0.00021917,3]
[328793511,1717789841288,-500.0,0.00021917,3]
[328793512,1717789841298,-1019.26,0.00021917,3]
[328793513,1717789841307,-236.88461826,0.00021917,3]
[328793514,1717789841316,-500.0,0.00021917,3]
[328793515,1717789841326,-500.0,0.00021917,3]
[328793516,1717789841335,-392.21450461,0.00021917,3]
[328793517,1717789841344,-888.56,0.00021917,3]
[328793518,1717789841354,-500.0,0.00021917,3]
[328793519,1717789841364,-500.0,0.00021917,3]
[328793520,1717789841373,-500.0,0.00021917,3]
[328793521,1717789841383,-500.0,0.00021917,3]
[328793522,1717789841392,-509.97558407,0.00021917,3]
[328793523,1717789841403,-543.30073802,0.00021917,3]
[328793524,1717789841413,-500.0,0.00021917,3]
[328793525,1717789841422,-365.17263988,0.00021917,3]
[328793526,1717789841432,-509.81974559,0.00021917,3]
[328793527,1717789841441,-1988.46,0.00021917,3]
[328793528,1717789841451,-500.0,0.00021917,3]
[328793529,1717789841461,-2547.12,0.00021917,3]
[328793530,1717789841471,-785.9,0.00021917,3]
[328793531,1717789841481,-706.6,0.00021917,3]
[328793532,1717789841491,-1416.52,0.00021917,3]
[328793533,1717789841501,-500.75836926,0.00021917,3]
[328793534,1717789841513,-500.0,0.00021917,3]
[328793535,1717789841522,-500.0,0.00021917,3]
[328793536,1717789841532,-500.0,0.00021917,3]
[328793537,1717789841542,-997.49,0.00021917,3]
[328793538,1717789841552,-500.0,0.00021917,3]
[328793539,1717789841562,-500.0,0.00021917,3]
[328793540,1717789841572,-500.0,0.00021917,3]
[328793541,1717789841582,-500.0,0.00021917,3]
[328793542,1717789841592,-202.61508078,0.00021917,3]
[328793543,1717789841607,-297.38491922,0.00021917,3]
[328793544,1717789841617,-500.0,0.00021917,3]
[328793545,1717789841627,-500.0,0.00021917,3]
[328793546,1717789841637,-500.0,0.00021917,3]
[328793547,1717789841647,-894.9,0.00021917,3]
[328793548,1717789841658,-945.63,0.00021917,3]
[328793549,1717789841668,-500.0,0.00021917,3]
[328793550,1717789841678,-5123.69,0.00021917,3]
[328793551,1717789841688,-500.0,0.00021917,3]
[328793552,1717789841698,-642.66,0.00021917,3]
[328793553,1717789841707,-1899.59,0.00021917,3]
[328793554,1717789841717,-2977.26,0.00021917,3]
[328793555,1717789841727,-1597.27,0.00021917,3]
[328793556,1717789841737,-500.0,0.00021917,3]
[328793557,1717789841747,-500.0,0.00021917,3]
[328793558,1717789841759,-4276.41508084,0.00021917,3]
[328793571,1717789844397,-877.24491916,0.00021917,3]
[328793572,1717789844407,-3427.4,0.00021917,3]
[328793574,1717789844416,-500.0,0.00021917,3]
[328793576,1717789844426,-500.0,0.00021917,3]
[328793579,1717789844436,-562.0738896,0.00021917,3]
[328793582,1717789844445,-649.60636776,0.00021917,3]
[328793584,1717789844456,-557.46,0.00021917,3]
[328793587,1717789844466,-500.0,0.00021917,3]
[328793589,1717789844475,-2554.36,0.00021917,3]
[328793592,1717789844485,-701.01,0.00021917,3]
[328793595,1717789844495,-500.0,0.00021917,3]
[328793598,1717789844504,-3589.54,0.00021917,3]
[328793600,1717789844514,-500.0,0.00021917,3]
[328793602,1717789844523,-500.0,0.00021917,2]
[328793603,1717789844533,-913.91,0.00021917,3]
[328793604,1717789844542,-570.17,0.00021917,3]
[328793605,1717789844552,-814.83,0.00021917,3]
[328793606,1717789844562,-500.0,0.00021917,2]
[328793608,1717789844571,-500.0,0.00021917,3]
[328793609,1717789844581,-1507.79,0.00021917,3]
[328793610,1717789844590,-1264.34,0.00021917,3]
[328793611,1717789844600,-200.0,0.00021917,3]
[328793612,1717789844610,-500.0,0.00021917,3]
[328793613,1717789844619,-500.0,0.00021917,3]
[328793614,1717789844629,-4668.41,0.00021917,3]
[328793615,1717789844638,-1136.99,0.00021917,3]
[328793616,1717789844648,-500.0,0.00021917,3]
[328793617,1717789844658,-500.0,0.00021917,3]
[328793618,1717789844667,-500.0,0.00021917,3]
[328793619,1717789844677,-500.0,0.00021917,3]
[328793620,1717789844687,-500.0,0.00021917,3]
[328793621,1717789844697,-500.0,0.00021917,3]
[328793622,1717789844707,-598.34,0.00021917,3]
[328793623,1717789844716,-1425.01,0.00021917,3]
[328793624,1717789844726,-638.35571564,0.00021917,3]
[328793630,1717789846693,-421.00428436,0.00021917,3]
[328793632,1717789846702,-513.69153125,0.00021917,3]
[328793634,1717789846712,-4629.97907464,0.00021917,3]
[328793659,1717789848932,-1249.89428243,0.00021917,3]
[328793687,1717789918183,200.33886083,9.999e-05,2]
[328793690,1717790245235,150.92453773,0.00023122,120]
[328793696,1717790845164,-171.691387,0.00019248,2]
[328793697,1717790845186,-2763.22163269,0.0001942,2]
[328793698,1717790845209,-24900.0,0.00019421,2]
[328793699,1717790845230,-170.793334,0.00019711,2]
[328793700,1717790845253,-198.0,0.0001978,3]
[328793701,1717790845279,-502.29322332,0.00019817,2]
[328793702,1717790845306,-37102.64018959,0.00020248,2]
[328793703,1717790845328,-281.19763205,0.00020284,2]
[328793704,1717790845350,-198.0,0.00020285,3]
[328793705,1717790845375,-522.502,0.0002047,2]
[328793706,1717790845397,-218.98,0.0002047,2]
[328793707,1717790845421,-198.0,0.00020789,5]
[328793708,1717790845443,-26135.5051181,0.00020948,2]
[328793764,1717791032923,-334.86214888,0.000189,2]
[328793766,1717791032933,-29.93872547,0.00020288,3]
[328793768,1717791032946,-121.06127453,0.00020288,3]
[328793782,1717791033082,-281.19763205,0.00020674,2]
[328793783,1717791033092,-170.793335,0.00020675,2]
[328793784,1717791033102,-151.0,0.00020793,5]
[328793785,1717791033112,-2480.12470658,0.00020948,2]
[328793786,1717791033126,-2904.08101259,0.00020948,2]
[328793787,1717791033137,-2473.48495548,0.00020948,2]
[328793812,1717791038783,-20761.99999999,0.00020948,2]
[328793815,1717791038801,-60775.86215724,0.00020948,2]
[328793817,1717791038811,-7369.57739568,0.00021,2]
[328793819,1717791038821,-153.0,0.00021115,2]
[328793821,1717791038831,-153.0,0.00021115,2]
[328793822,1717791038840,-153.0,0.00021115,2]
[328793824,1717791038850,-151.0,0.00021297,5]
[328793826,1717791038859,-16960.25592996,0.00021484,2]
[328793830,1717791038890,-4146.0,0.00021484,2]
[328793880,1717791042193,-500.33470423,0.00021484,2]
[328793889,1717791044142,-309.87613932,0.00021484,2]
[328793954,1717791131686,154.93802479,9.999e-05,2]
[328793955,1717791141614,154.93802479,9.999e-05,2]
[328793956,1717791157960,12692.72138295,9.999e-05,2]
[328793957,1717791174185,154.93802479,9.999e-05,2]
[328793958,1717791178439,11925.05883491,9.999e-05,2]
[328793959,1717791183459,1500.82055846,9.999e-05,2]
[328793960,1717791184808,1314.42226976,9.999e-05,2]
[328793961,1717791186102,326.00324292,9.999e-05,2]
[328793962,1717791186650,154.93802479,9.999e-05,2]
[328793963,1717791189831,154.93802479,9.999e-05,2]
[328793969,1717791193242,212.96857328,9.999e-05,2]
[328793970,1717791195754,837.83743989,9.999e-05,2]
[328793971,1717791195890,1155.40031062,9.999e-05,2]
[328793976,1717791197309,154.93802479,9.999e-05,2]
[328793985,1717791199768,154.93802479,9.999e-05,2]
[328793986,1717791201767,154.93802479,9.999e-05,2]
[328793988,1717791206706,1910.49735366,9.999e-05,2]
[328793990,1717791228149,741.42,0.00010959,2]
[328794002,1717791384528,150.92453773,0.0002288,30]
[328794003,1717791403750,741.39,0.00010959,2]
[328794004,1717791459146,55265.97638406,0.00014998,2]
[328794006,1717791913369,154.93802479,9.999e-05,2]
[328794007,1717791954182,-4292.1152737,0.00014998,2]
[328794008,1717791954205,-2812.99414958,0.00015,2]
[328794009,1717791954226,-2409.63345823,0.00015,2]
[328794010,1717791954246,-275.50564015,0.000165,2]
[328794011,1717791954269,-190.4326803,0.00017035,2]
[328794012,1717791954289,-157.08712556,0.00017035,2]
[328794013,1717791954310,-856.27335963,0.00017895,2]
[328794014,1717791954331,-245.46385196,0.00017895,2]
[328794015,1717791954352,-258.31216375,0.00017895,2]
[328794016,1717791954372,-172.4417397,0.00017895,2]
[328794017,1717791954394,-838.89524628,0.00017895,2]
[328794018,1717791954416,-269.01880375,0.00017895,2]
[328794019,1717791954437,-972.19383994,0.00017895,2]
[328794020,1717791954458,-289.16027736,0.00017895,2]
[328794021,1717791954480,-780.9502552,0.00017895,2]
[328794022,1717791954615,-6509.40294039,0.00017896,2]
[328794023,1717791954638,-7603.57387379,0.00017896,2]
[328794024,1717791954661,-24452.3514215,0.00017897,2]
[328794044,1717792145177,-15030.32300586,0.00017897,2]
[328794045,1717792145200,-10476.77809278,0.00017898,2]
[328794046,1717792145222,-24900.0,0.00018082,2]
[328794047,1717792145242,-444.21129571,0.000189,2]
[328794048,1717792145263,-1307.37109231,0.00019078,2]
[328794049,1717792145283,-157.08712556,0.00019746,2]
[328794050,1717792145305,-155.3,0.00019747,3]
[328794111,1717792232338,-157.08712556,0.00019999,2]
[328794114,1717792232348,-154.93802479,0.0002,2]
[328794115,1717792232358,-256.97484965,0.0002,4]
[328794118,1717792232371,-271.84563642,0.0002,4]
[328794120,1717792232385,-281.19763205,0.0002,2]
[328794122,1717792232395,-1354.67102739,0.00020188,2]
[328794124,1717792232404,-931.88170639,0.00020189,2]
[328794126,1717792232414,-151.0,0.00020238,3]
[328794128,1717792232424,-499.0,0.00020621,2]
[328794130,1717792232434,-154.6126418,0.000207,2]
[328794132,1717792232443,-151.0,0.00020748,5]
[328794134,1717792232453,-986.79,0.00020976,2]
[328794136,1717792232463,-59558.09165776,0.00020999,2]
[328794138,1717792232472,-393.30017093,0.00021,2]
[328794140,1717792232482,-2072.36485927,0.00021,2]
[328794142,1717792232495,-7369.57739568,0.00021,2]
[328794144,1717792232504,-205.1978842,0.00021041,2]
[328794145,1717792232514,-292.3309227,0.00021041,2]
[328794147,1717792232523,-205.1978842,0.00021041,2]
[328794149,1717792232533,-151.0,0.00021257,5]
[328794150,1717792232543,-153.0,0.0002126,2]
[328794152,1717792232552,-4236.94913646,0.00021324,2]
[328794154,1717792232562,-205.1978842,0.00021397,2]
[328794155,1717792232573,-83926.01717724,0.00021484,2]
[328794158,1717792232586,-269.24912565,0.00021484,2]
[328794160,1717792232597,-913.496781,0.00021484,2]
[328794225,1717792238502,-3792.79999999,0.00021484,2]
[328794229,1717792238547,-655.23892612,0.00021484,2]
[328794234,1717792238596,-3238.82251958,0.00021484,2]
[328794237,1717792238607,-286.47075578,0.00021484,2]
[328794239,1717792238616,-968.07501264,0.000215,2]
[328794241,1717792238628,-2031.92498736,0.000215,2]
[328794242,1717792238638,-3260.180814,0.0002151,2]
[328794243,1717792238648,-154.29731235,0.00021697,3]
[328794244,1717792238657,-151.0,0.00021766,5]
[328794245,1717792238667,-151.0,0.00021766,5]
[328794246,1717792238677,-161.04451303,0.0002181,2]
[328794247,1717792238687,-267.03977808,0.00021811,7]
[328794248,1717792238697,-380.78381648,0.00021815,2]
[328794249,1717792238707,-380.78381644,0.00021816,2]
[328794250,1717792238717,-380.78381644,0.00021816,2]
[328794252,1717792238727,-380.78381644,0.00021817,2]
[328794254,1717792238736,-380.78381644,0.00021817,2]
[328794256,1717792238748,-203.2833049,0.00021863,2]
[328794258,1717792238758,-408.6932957,0.00021863,2]
[328794260,1717792238769,-156.10859402,0.00021912,2]
[328794261,1717792238784,-492.60189128,0.00021912,2]
[328794262,1717792238794,-535.40888248,0.00021912,2]
[328794263,1717792238804,-172.19451839,0.00021912,2]
[328794264,1717792238815,-497.36750297,0.00021912,2]
[328794281,1717792242014,-2.63249703,0.00021912,2]
[328794282,1717792242025,-500.0,0.00021912,2]
[328794283,1717792242035,-500.0,0.00021912,2]
[328794284,1717792242046,-475.61642634,0.00021912,2]
[328794285,1717792242056,-398.34538975,0.00021912,2]
[328794286,1717792242067,-500.0,0.00021912,2]
[328794287,1717792242077,-500.0,0.00021912,2]
[328794288,1717792242087,-369.06859744,0.00021912,2]
[328794289,1717792242097,-500.0,0.00021912,2]
[328794290,1717792242108,-500.0,0.00021912,2]
[328794291,1717792242118,-500.0,0.00021912,2]
[328794292,1717792242127,-584.58024983,0.00021912,2]
[328794293,1717792242138,-226.87879862,0.00021912,2]
[328794294,1717792242148,-500.0,0.00021912,2]
[328794295,1717792242157,-303.68142103,0.00021913,2]
[328794296,1717792242167,-2832.52028061,0.00021913,2]
[328794297,1717792242177,-154.95351395,0.00021913,2]
[328794298,1717792242187,-472.0249342,0.00021913,2]
[328794299,1717792242196,-569.0,0.00021913,2]
[328794300,1717792242206,-283.36762168,0.00021913,2]
[328794301,1717792242216,-1579.87531153,0.00021913,2]
[328794302,1717792242226,-168.02974538,0.00021913,2]
[328794303,1717792242236,-273.81649751,0.00021913,2]
[328794304,1717792242246,-633.65622827,0.00021913,2]
[328794305,1717792242255,-551.32951369,0.00021913,2]
[328794306,1717792242265,-1882.99442975,0.00021913,2]
[328794307,1717792242395,-356.74854806,0.00021913,2]
[328794308,1717792242407,-477.51326129,0.00021913,2]
[328794309,1717792242418,-1684.18494393,0.00021913,2]
[328794310,1717792242428,-279.47990964,0.00021913,2]
[328794311,1717792242439,-270.18744518,0.00021913,2]
[328794312,1717792242449,-208.75177812,0.00021913,2]
[328794313,1717792242460,-220.59488031,0.00021913,2]
[328794314,1717792242470,-379.94070854,0.00021913,2]
[328794315,1717792242481,-156.48508104,0.00021913,2]
[328794316,1717792242491,-218.94625541,0.00021913,2]
[328794317,1717792242503,-155.74857925,0.00021913,2]
[328794318,1717792242514,-492.28215197,0.00021913,2]
[328794319,1717792242524,-155.78756067,0.00021913,2]
[328794320,1717792242534,-289.81222804,0.00021913,2]
[328794321,1717792242544,-380.0,0.00021913,2]
[328794322,1717792242554,-287.38489548,0.00021913,2]
[328794323,1717792242565,-301.00972908,0.00021913,2]
[328794324,1717792242575,-1997.97194904,0.00021914,2]
[328794325,1717792242589,-8540.03125941,0.00021914,2]
[328794326,1717792242599,-2483.49344487,0.00021914,2]
[328794327,1717792242610,-25220.00507145,0.00021914,2]
[328794328,1717792242620,-274.92915268,0.00021915,2]
[328794329,1717792242631,-606.170302,0.00021915,2]
[328794330,1717792242641,-710.4329038,0.00021915,2]
[328794331,1717792242651,-1631.38626488,0.00021916,2]
[328794332,1717792242661,-190.33835148,0.00021916,2]
[328794333,1717792242671,-3930.61645302,0.00021917,7]
[328794335,1717792242684,-42112.07459535,0.00021917,7]
[328794337,1717792242697,-695.08425781,0.00021917,7]
[328794346,1717792244285,-187.22778156,0.00021911,2]
[328794347,1717792244295,-126.48941844,0.00021917,7]
[328794348,1717792244307,-358.50001,0.00021917,7]
[328794349,1717792244952,-398.67952422,0.00021915,2]
[328794350,1717792244962,-9386.87040744,0.00021917,7]
[328794351,1717792244972,-2103.50312401,0.00021917,7]
[328794352,1717792244981,-500.0,0.00021917,3]
[328794353,1717792244991,-503.97318675,0.00021917,3]
[328794354,1717792245002,-151.0,0.00021917,2]
[328794355,1717792245012,-151.0,0.00021917,2]
[328794356,1717792245021,-500.0,0.00021917,3]
[328794357,1717792245031,-500.0,0.00021917,3]
[328794358,1717792245041,-519.76995457,0.00021917,3]
[328794359,1717792245051,-1530.71,0.00021917,3]
[328794360,1717792245060,-540.95707789,0.00021917,3]
[328794361,1717792245070,-558.53657252,0.00021917,3]
[328794362,1717792245080,-500.0,0.00021917,3]
[328794363,1717792245090,-500.0,0.00021917,3]
[328794364,1717792245099,-500.0,0.00021917,2]
[328794365,1717792245109,-553.12,0.00021917,3]
[328794366,1717792245119,-200.0,0.00021917,3]
[328794367,1717792245130,-500.0,0.00021917,3]
[328794368,1717792245139,-451.74,0.00021917,3]
[328794369,1717792245149,-183.87044769,0.00021917,3]
[328794370,1717792245162,-316.12955231,0.00021917,3]
[328794371,1717792245172,-183.87044769,0.00021917,3]
[328794387,1717792247247,-281.19763205,0.00021915,2]
[328794388,1717792247258,-905.73955231,0.00021917,3]
[328794389,1717792247267,-500.0,0.00021917,3]
[328794390,1717792247276,-500.0,0.00021917,3]
[328794391,1717792247286,-151.0,0.00021917,2]
[328794392,1717792247295,-500.0,0.00021917,3]
[328794393,1717792247304,-500.0,0.00021917,3]
[328794394,1717792247313,-878.45,0.00021917,3]
[328794396,1717792247322,-503.1110389,0.00021917,3]
[328794398,1717792247331,-500.0,0.00021917,3]
[328794400,1717792247440,-500.0,0.00021917,3]
[328794401,1717792247450,-579.2,0.00021917,3]
[328794402,1717792247459,-500.0,0.00021917,3]
[328794403,1717792247468,-500.0,0.00021917,3]
[328794404,1717792247477,-500.0,0.00021917,3]
[328794405,1717792247486,-508.24968099,0.00021917,3]
[328794406,1717792247495,-500.0,0.00021917,3]
[328794407,1717792247504,-508.55428627,0.00021917,3]
[328794408,1717792247514,-633.75,0.00021917,3]
[328794409,1717792247523,-500.0,0.00021917,3]
[328794410,1717792247532,-692.08,0.00021917,3]
[328794411,1717792247541,-500.0,0.00021917,3]
[328794412,1717792247550,-500.0,0.00021917,3]
[328794413,1717792247559,-751.96,0.00021917,3]
[328794414,1717792247568,-500.0,0.00021917,3]
[328794415,1717792247577,-500.0,0.00021917,3]
[328794416,1717792247586,-500.0,0.00021917,3]
[328794417,1717792247595,-500.0,0.00021917,3]
[328794418,1717792247604,-500.0,0.00021917,3]
[328794419,1717792247613,-500.0,0.00021917,3]
[328794420,1717792247622,-500.0,0.00021917,3]
[328794421,1717792247631,-509.12954843,0.00021917,3]
[328794422,1717792247640,-315.49007819,0.00021917,3]
[328794423,1717792247649,-500.0,0.00021917,3]
[328794424,1717792247659,-500.0,0.00021917,3]
[328794425,1717792247667,-500.0,0.00021917,3]
[328794426,1717792247676,-500.0,0.00021917,3]
[328794427,1717792247685,-500.0,0.00021917,3]
[328794428,1717792247694,-389.47316432,0.00021917,3]
[328794429,1717792247704,-500.0,0.00021917,3]
[328794430,1717792247713,-500.0,0.00021917,3]
[328794431,1717792247722,-879.54,0.00021917,3]
[328794432,1717792247731,-500.0,0.00021917,3]
[328794433,1717792247740,-500.0,0.00021917,3]
[328794434,1717792247749,-151.0,0.00021917,2]
[328794435,1717792247759,-500.0,0.00021917,3]
[328794436,1717792247769,-151.0,0.00021917,2]
[328794437,1717792247781,-1213.01,0.00021917,3]
[328794438,1717792247790,-500.0,0.00021917,3]
[328794439,1717792247799,-500.0,0.00021917,3]
[328794440,1717792247807,-500.0,0.00021917,3]
[328794441,1717792247817,-500.0,0.00021917,3]
[328794442,1717792247826,-500.0,0.00021917,3]